Cogmind - Beta 14 @@@ ROGUE MODE // 2024.11.07 @ 01:47:13 Player: Spoodle Result: Destroyed self via exploding Plasma Injector Performance ------------- Evolutions (0) 0 Regions Visited (2) 400 Robots Destroyed (38) 190 Value Destroyed (484) 484 Prototype IDs (0) 0 Alien Tech Used (0) 0 Bonus (0) 0 TOTAL SCORE: 1074 Bonus ------- None Cogmind --------- Core Integrity 0/250 Matter 290/300 Energy 37/100 System Corruption 0% Temperature Warm (120) Movement Core (400) Ox7 Location -10/Mines Parts ------- > --- POWER (1) -------- (None) > --- PROPULSION (2) --- (None) > --- UTILITY (2) ------ Large Storage Unit > --- WEAPON (2) ------- Beam Cannon > --- INVENTORY (15) --- Light Treads Heat Sink Heat Sink Medium Storage Unit Seismic Detector Seismic Detector Hacking Suite Medium Laser Medium Laser Beam Cannon Rocket Launcher Mining Laser Peak State ------------ > --- POWER ------------ Light Ion Engine > --- PROPULSION ------- Aluminum Leg Aluminum Leg > --- UTILITY ---------- Medium Storage Unit Seismic Detector > --- WEAPON ----------- Medium Laser Medium Laser > --- INVENTORY -------- Ion Engine Light Treads Light Treads Heat Sink Seismic Detector Utility Shielding Hacking Suite Medium Laser Mining Laser [Rating: 8] Favorites ----------- Power Light Ion Engine Engine Light Ion Engine Propulsion Light Treads Treads Light Treads Leg Aluminum Leg Utility Seismic Detector Device Seismic Detector Storage Medium Storage Unit Protection Light Armor Plating Weapon Medium Laser Energy Gun Medium Laser Energy Cannon Beam Cannon Ballistic Gun Light Assault Rifle Ballistic Cannon Light Cannon Launcher Grenade Launcher Special Weapon Mining Laser Build | -11 -10 -10 ------- Run | Yrd Mat Min Slots Evolved . | . . . Power . | . . . Propulsion . | . . . Utility . | . . . Weapon . | . . . Parts Attached 45 | 8 29 8 Power 6 | 1 5 . Engine 6 | 1 5 . Core . | . . . Reactor . | . . . Propulsion 6 | 2 4 . Treads 2 | . 2 . Leg 4 | 2 2 . Wheel . | . . . Hover . | . . . Flight . | . . . Utility 12 | 2 5 5 Device 6 | 1 4 1 Storage 3 | 1 1 1 Processor . | . . . Hackware . | . . . Protection 3 | . . 3 Artifact . | . . . Weapon 21 | 3 15 3 Energy Gun 9 | 1 7 1 Energy Cannon 3 | . 3 . Ballistic Gun 2 | 2 . . Ballistic Cannon 1 | . . 1 Launcher 5 | . 4 1 Special Weapon 1 | . 1 . Impact Weapon . | . . . Slashing Weapon . | . . . Piercing Weapon . | . . . Special Melee Weapon . | . . . Unidentified Prototypes . | . . . Parts Lost 7 | . . 7 Power 1 | . . 1 Propulsion 2 | . . 2 Utility 2 | . . 2 Weapon 2 | . . 2 Highest Loss Streak 4 | . . 4 To Critical Strikes . | . . . Average Slot Usage (%) 99 | . 99 97 Engine 13 | . 13 12 Treads 16 | . 13 27 Leg 11 | . 14 . Device 13 | . 14 11 Storage 14 | . 14 14 Energy Gun 17 | . 20 3 Energy Cannon 7 | . 4 17 Ballistic Gun 1 | . 1 . Ballistic Cannon 1 | . . 6 Peak Build Rating 8 | 7 8 8 Average Rating 7 | 5 7 7 On Entrance 5 | . 7 8 Naked Turns . | . . . Heaviest Build 33 | 12 22 33 Greatest Support 40 | 20 40 40 Greatest Overweight (x) . | . . . Average Overweight (x) . | . . . Largest Inventory Capacity 15 | 8 10 15 Average Capacity 10 | 7 9 13 Most Carried 14 | 7 10 14 Average Carried 9 | 4 9 12 Final Capacity 15 | 8 10 15 Final Carried 12 | 6 10 12 Class Distribution -------------------- 86% | Mutant 13% | Scavenger-Mutant Dominant Class ---------------- Mutant | -10/Materials Mutant | -10/Mines Resources | -11 -10 -10 ----------- Run | Yrd Mat Min Matter Collected 728 | 310 361 57 Remotely . | . . . Salvage Created 917 | 252 647 18 Parts 68 | 20 47 1 Haulers Intercepted 2 | . 2 . Recyclers Shooed 2 | 1 1 . Parts Field Recycled . | . . . Retrieved Matter . | . . . Parts Self-Destructed . | . . . Prevented . | . . . Kills | -11 -10 -10 ------- Run | Yrd Mat Min Combat Hostiles Destroyed 19 | . 16 3 Guns 9 | . 8 1 Cannons 1 | . 1 . AOE 9 | . 7 2 Classes Destroyed 10 | 3 6 1 Worker 4 | 1 3 . Builder 1 | . 1 . Tunneler 9 | 9 . . Hauler 2 | . 2 . Recycler 3 | 1 2 . Operator 1 | . 1 . Watcher 1 | . 1 . Swarmer 10 | . 9 1 Grunt 7 | . 7 . Assembled 2 | . . 2 Best Kill Streak 4 | 4 4 2 Combat Bots Only 3 | . 3 2 Max Kills in Single Turn 3 | 1 3 2 Gunslinging . | . . . Exploded 3 | . 3 2 Melee . | . . . Uniques/NPCs Destroyed . | . . . Combat | -11 -10 -10 -------- Run | Yrd Mat Min Hostile Shots Fired 79 | . 56 23 Missed 22 | . 18 4 Damage Taken 1103 | . 375 728 Core 263 | . 71 192 Absorbed by Shields . | . . . Regen/Repaired (Parts) 59 | . 59 . Core Remaining (%) 100 | 100 . . Volleys Fired 101 | 30 58 13 Largest 2 | 2 2 2 Hottest 120 | 70 120 110 Shots Fired 191 | 60 107 24 Gun 150 | 60 82 8 Cannon 31 | . 16 15 Launcher 9 | . 8 1 Special 1 | . 1 . Kinetic 44 | 30 11 3 Thermal 138 | 30 88 20 Explosive 9 | . 8 1 Electromagnetic . | . . . Robot Hit Streak 17 | 13 17 4 Robot Miss Streak 5 | 5 5 3 Penetration Max . | . . . Secondary Targets . | . . . Shots Hit Robots 118 | 41 66 11 Core Hits 60 | 16 41 3 Critical Kills . | . . . Critical Parts Destroyed . | . . . Critical Strikes 6 | 3 3 . Burn 6 | 3 3 . Melee Attacks . | . . . Impact . | . . . Slashing . | . . . Piercing . | . . . Sneak Attacks . | . . . Combat Hostiles . | . . . Follow-up Attacks . | . . . Damage Inflicted 2193 | 465 1425 303 Guns 1154 | 457 633 64 Cannons 246 | . 139 107 Explosions 765 | . 633 132 Melee . | . . . Ramming 28 | 8 20 . Kinetic 232 | 169 63 . Thermal 1223 | 288 709 226 Explosive 710 | . 633 77 Electromagnetic . | . . . Impact . | . . . Slashing . | . . . Piercing . | . . . Highest Corruption . | . . . Average Corruption . | . . . Corruption Purged . | . . . Corruption Blocked . | . . . Overload Shots . | . . . Overflow Damage 90 | . 14 76 Projectiles 12 | . . 12 Explosions 78 | . 14 64 Melee . | . . . Knockbacks . | . . . Impact . | . . . Kinetic . | . . . Secondary . | . . . Self-Inflicted Damage 165 | . 22 143 Shots 4 | . 1 3 Rammed 6 | . 6 . Targets Rammed 9 | 1 8 . Kicked 2 | 1 1 . Crushed 1 | . 1 . Highest Temperature 197 | 174 139 197 Average Temperature 54 | 75 39 76 Received Heat Transfer 96 | . 96 . Siege Activations . | . . . Robots Corrupted . | . . . Combat Hostiles . | . . . Parts Fried . | . . . Impact Corruptions . | . . . Robots Melted 1 | . 1 . Combat Hostiles . | . . . Parts Melted 3 | 2 1 . Heat Transferred 3713 | 1073 2183 457 Parts Sabotaged . | . . . Parts Stolen . | . . . Parts Stripped . | . . . Power Chain Reactions . | . . . Alert | -11 -10 -10 ------- Run | Yrd Mat Min Peak Influence 505 | 55 505 163 Initial 153 | . 35 153 Average 160 | 23 193 153 Maximum Alert Level 2 | . 2 . Low Security (%) 74 | 100 61 100 Level 1 23 | . 34 . Level 2 2 | . 3 . Level 3 . | . . . Level 4 . | . . . Level 5 . | . . . High Security . | . . . Max Security . | . . . Squads Dispatched 3 | . 3 . Investigation 2 | . 2 . Extermination . | . . . Reinforcement 1 | . 1 . Assault . | . . . Garrison . | . . . Intercept . | . . . Searches Triggered . | . . . Construction Impeded . | . . . Haulers Reinforced . | . . . Active Scanning Responses . | . . . Cargo Convoy Interrupts . | . . . Stealth | -11 -10 -10 --------- Run | Yrd Mat Min Distress Signals 2 | . 2 . Communications Jammed . | . . . Distress Signals . | . . . Times Spotted 31 | . 26 5 Peak Tracking Total 4 | . 4 3 Tactical Retreats 2 | . 1 1 Traps | -11 -10 -10 ------- Run | Yrd Mat Min Traps Triggered . | . . . Indirectly . | . . . Trap Hack Attempts . | . . . Triggered . | . . . Disarmed . | . . . Reprogrammed . | . . . Reused . | . . . Traps Extracted . | . . . Installed . | . . . Triggered . | . . . Machines | -11 -10 -10 ---------- Run | Yrd Mat Min Machines Disabled 2 | . . 2 Max in Single Turn 2 | . . 2 Machines Repaired . | . . . Machines Dismantled . | . . . Machines Sabotaged . | . . . Overloaded Fab Kills . | . . . Hacking | -11 -10 -10 --------- Run | Yrd Mat Min Machines Accessed 9 | . 9 . Terminals 6 | . 6 . Fabricators . | . . . Repair Stations 1 | . 1 . Recycling Units 2 | . 2 . Scanalyzers . | . . . Garrison Access . | . . . Total Hacks 24 | . 24 . Successful 12 | . 12 . Failed 11 | . 11 . Catastrophic 1 | . 1 . Database Lockouts 1 | . 1 . Manual 16 | . 16 . Terminals 19 | . 19 . Fabricators . | . . . Repair Stations 3 | . 3 . Recycling Units 2 | . 2 . Scanalyzers . | . . . Garrison Access . | . . . Terminal Hacks 4 | . 4 . Robot Analysis 1 | . 1 . Locate Traps 1 | . 1 . Patrol Status 1 | . 1 . Zone Layout 1 | . 1 . Fabricator Hacks . | . . . Repair Station Hacks 2 | . 2 . Scan Component 1 | . 1 . Repair 1 | . 1 . Recycling Unit Hacks . | . . . Scanalyzer . | . . . Garrison Access Hacks . | . . . Unauthorized Hacks 6 | . 6 . Terminals 4 | . 4 . Botnet 2 | . 2 . Skim 2 | . 2 . Fabricators . | . . . Repair Stations . | . . . Recycling Units 2 | . 2 . Tunnel 2 | . 2 . Scanalyzers . | . . . Garrison Access . | . . . Data Cores Recovered 1 | . 1 . Used . | . . . Hacking Detections 7 | . 7 . Full Trace Events 1 | . 1 . Feedback Events . | . . . Feedback Blocked . | . . . Robot Schematics Acquired . | . . . Robots Built . | . . . Authchips . | . . . Time . | . . . Total Robot Build Rating . | . . . Part Schematics Acquired . | . . . Parts Built . | . . . Authchips . | . . . Time . | . . . Total Part Build Rating . | . . . Parts Repaired 1 | . 1 . Time 26 | . 26 . Parts Recycled . | . . . Recycled Matter . | . . . Retrieved Matter . | . . . Retrieved Components . | . . . Parts Scanalyzed . | . . . Part Schematics Acquired . | . . . Parts Damaged . | . . . Bothacking | -11 -10 -10 ------------ Run | Yrd Mat Min Used RIF Installer . | . . . Robots Hacked . | . . . Non-combat . | . . . Combat . | . . . Robot Hacks Applied . | . . . Relay Couplers Released . | . . . Fabnet Peak Effective % . | . . . Robots Rewired . | . . . Allies Hacked . | . . . Hacks Repelled . | . . . Allies | -11 -10 -10 -------- Run | Yrd Mat Min Total Allies . | . . . Largest Group . | . . . Highest-Rated Group . | . . . Highest-Rated Ally . | . . . Total Orders . | . . . Ally Attacks . | . . . Total Damage . | . . . Kills . | . . . Allies Corrupted . | . . . Allies Melted . | . . . Intel | -11 -10 -10 ------- Run | Yrd Mat Min Robot Analysis Total 1 | . 1 . Derelict Logs Recovered . | . . . Drone Launches . | . . . Drone Recoveries . | . . . Exploration | -11 -10 -10 ------------- Run | Yrd Mat Min Turns Passed 1810 | 269 1200 341 Spaces Moved 981 | 124 680 177 Core 15 | 15 . . Treads 473 | . 296 177 Legs 493 | 109 384 . Wheels . | . . . Hover . | . . . Flight . | . . . Fastest Speed 50 | 50 120 160 Average Speed 138 | 111 137 160 Slowest Speed 160 | 120 160 160 Overloaded Moves . | . . . Propulsion Burnouts . | . . . Robots Hopped . | . . . Cave-ins Triggered . | . . . Exploration Rate (%) 42 | 6 95 25 Regions Visited 2 Branch Regions 1 Pre-discovered Areas 2 | . 2 . Known Exits Taken . | . . . Unknown Exits Taken 2 | 1 1 . Scrap Searched . | . . . Spaces Dug 1 | . 1 . Terrain Destroyed 58 | . 54 4 Melee . | . . . Projectile 1 | . 1 . AOE 57 | . 53 4 Terrain Rammed . | . . . Walls Destroyed . | . . . Machines Disabled . | . . . Actions | -11 -10 -10 --------- Run | Yrd Mat Min Total 1242 | 199 832 211 Wait 61 | 25 30 6 Move 979 | 123 679 177 Hop . | . . . Pick Up 28 | 11 12 5 Fast Attach 7 | 3 3 1 Attach 6 | 4 . 2 Detach . | . . . Swap 32 | 1 26 5 Drop 19 | 1 16 2 Fire 101 | 30 58 13 Melee . | . . . Ram . | . . . Kick 2 | 1 1 . Crush 7 | . 7 . Escape Stasis . | . . . Rewire . | . . . Trap . | . . . Miscellaneous . | . . . Route ------- -11/Scrapyard -10/Materials (discovered 4 exits: [*Mat x3] / [*Min]) -10/Mines (discovered 1 exit: [*Mat]) History --------- Turn | Location | Event 12 | -11/Scrapyard | Discovered new exit (range 16) 270 | -11/Scrapyard | Entered Materials 305 | -10/Materials | Build established: Mutant 515 | -10/Materials | Discovered new exit (range 16) 801 | -10/Materials | Discovered new exit (range 5) 1082 | -10/Materials | Central database locked down 1086 | -10/Materials | Discovered new exit (range 16) 1213 | -10/Materials | Discovered new exit (range 9) 1309 | -10/Materials | Repaired Med. Laser 1470 | -10/Materials | Entered Mines 1477 | -10/Mines | Received a Rocket Launcher from a helpful Derelict 1488 | -10/Mines | Met a Derelict bent on vengeance 1698 | -10/Mines | Discovered new exit (range 9) 1752 | -10/Mines | Assembled infested the area 1757 | -10/Mines | Assisted by a Guerilla fighting off Assembled 1770 | -10/Mines | Core integrity fell below 50% 1811 | -10/Mines | Destroyed self via exploding Plasma Injector Last Messages --------------- 01774_ D-53 Grenadier destroyed. 01778_ The unstable cave ceiling collapses. 01784_ T-07 Excavator destroyed. 01785_ Acquired 23 matter. 01803_ U-05 Engineer builds a Wall. 01803_ Lgt. Armor Plating severed. 01805_ Acquired Lgt. Armor Plating. 01807_ U-05 Engineer lays Concrete. 01807_ Destroyed Asb. Hover Unit. 01808_ Lgt. Treads destroyed. 01811_ as-53682 destroyed. 01811_ Plasma Injector explodes. 01811_ Lgt. Treads destroyed. 01811_ Destroyed Lgt. Treads. 01811_ Lgt. Armor Plating destroyed. 01811_ Destroyed Lgt. Armor Plating. 01811_ Destroyed Asb. Hover Unit. 01811_ as-75889 destroyed. 01811_ Grenade Launcher destroyed. 01811_ Destroyed Grenade Launcher. Map ----- +----------------------------------------------------+ | ??????## ######## ##??#####?####?## ##???? | | ?????## #?## ### ### % ##??? | | ????## ##### """ ### ##?? | | ????# #???# """ ##? | | ????# ### ##???## """ #####= = #? | | ????###?####?????## #####!! ###???## #? | | ??????????????????#### ##???##= ##??????## ##? | | ?????????????????????## #?????## ##????????#####?? | | ??????????????????????# #??????###???????????????? | | ??????????????????????# #????????????????????????? | | ?????????????????????## ########?????????????????? | | ?????????????????????# #?????????????????? | | ?????????????????????# """ """ #?????????????????? | | ?????????????????????# """ """ #?????????????????? | | ?????????????????????# """ """ #?????????????????? | | ?????????????????????# #?????????????????? | | ?????????????????????# #?????????????????? | | ?????????????????????######## ##?????????????????? | | ????????????????????????????# #??????????????????? | | ????????????????????????????# #??????????????????? | | ???????????????????########## #??##??????????????? | | ???????????????????# ## #?? ##?????????????? | | ???????????????????# ## #?# ##????????????? | | ???????????????????# ##%! ##???????????? | | ?????????????????### =!| #???????????? | | ????????????????# < @ #???????????? | | ????????????????#|## # ##???????????? | | ???????????????????# ## "#####????????????? | | ???????????????????# ####%# #??????????????? | | ???????????????????# ####"# #??????????????? | | ???????????????????########## ####????????????? | | ??????????????????????????## #????????????? | | ??????????????????????????# # # #????????????? | | ??????????????????????????## ##???????????? | | ??????????????????????????# % #???????????? | | ??????????????????######### = ##???????????? | | ??????????????????# % #????????????? | | ???????????# ###### #????????????? | | ??????????# ##?????????## ###????????????? | | ????????????????????????????#######??????????????? | | ?????????????????????????????????????????????????? | | ?????????????????????????????????????????????????? | | ?????????????????????????????????????????????????? | | ?????????????????????????????????????????????????? | | ?????????????????????????????????????????????????? | | ?????????????????????????????????????????????????? | | ?????????????????????????????????????????????????? | | ?????????????????????????????????????????????????? | | ?????????????????????????????????????????????????? | | ?????????????????????????????????????????????????? | +----------------------------------------------------+ Best States ------------- Heat Dissipation 35 Energy Generation 10 Energy Capacity 250 Matter Stores 300 Matter Capacity 300 Sight Range 16 Terrain Scan Density 10 Armor Coverage 150 Evasion (%) 55 Recoil Reduction 2 Item Schematics ----------------- None Robot Schematics ------------------ None Fabricated ------------ Nothing Alien Tech Used ----------------- None Achievements -------------- None Challenges ------------ None Game ------ Seed ScatterPhysicsPlatform Manual? 0 Play Time 00:13:27 Cumulative 281.1 hours Start 2024.11.07 @ 01:34:23 End 2024.11.07 @ 01:47:13 Sessions 1 Manual Loads 0 Difficulty Rogue Special Mode None Game No. 130 Rogue 130 Adventurer 0 Explorer 0 Win Type - Total 10 Types 6/0/3/1/0/0/0/0/0 Lore% 75 Gallery% 75 Achievement% 65 Wizard Run 0 Options --------- Layout 0 ASCII 0 Keyboard 1 Movement Numpad Keybinds 0 Fullscreen 2 Font 18/SmallcapsGlow Map View 76x50 Zoom Use 0% Tactical HUD 1 Map Filters NONE Filters NONE Steam 1 RUN: e32d4b9e-18d4-42e7-a407-052ee26b887a